fUST/lending_fUST_20240621
["ID","MTS","AMOUNT","RATE_DAILY","PERIOD"]
[330006679,1718925039534,-500.0,0.00054794,120]
[330006680,1718925039544,-500.0,0.00054794,120]
[330006681,1718925039555,-500.0,0.00054794,120]
[330006682,1718925039566,-169.92105506,0.00054794,120]
[330006683,1718925039577,-500.0,0.00054794,120]
[330006684,1718925039588,-500.0,0.00054794,120]
[330006685,1718925039599,-500.0,0.00054794,120]
[330006686,1718925039610,-500.0,0.00054794,120]
[330006687,1718925039621,-500.0,0.00054794,2]
[330006688,1718925039632,-250.0,0.00054794,120]
[330006689,1718925039642,-1465.6,0.00054794,120]
[330006690,1718925039653,-882.86,0.00054794,120]
[330006692,1718925039663,-610.32,0.00054794,120]
[330006694,1718925039674,-500.0,0.00054794,120]
[330006695,1718925039684,-500.0,0.00054794,120]
[330006696,1718925039695,-586.58,0.00054794,7]
[330006697,1718925039704,-1346.31,0.00054794,120]
[330006698,1718925039715,-500.0,0.00054794,120]
[330006699,1718925039725,-500.0,0.00054794,120]
[330006700,1718925039735,-600.49945447,0.00054794,120]
[330006701,1718925039745,-699.3,0.00054794,120]
[330006702,1718925039755,-500.0,0.00054794,120]
[330006703,1718925039766,-2062.13,0.00054794,120]
[330006704,1718925039776,-500.0,0.00054794,120]
[330006705,1718925039787,-500.0,0.00054794,120]
[330006706,1718925039797,-500.0,0.00054794,120]
[330006707,1718925039807,-500.0,0.00054794,120]
[330006708,1718925039816,-500.0,0.00054794,120]
[330006709,1718925039826,-500.0,0.00054794,120]
[330006710,1718925039836,-500.0,0.00054794,120]
[330006711,1718925039845,-500.0,0.00054794,120]
[330006714,1718925039855,-1807.04,0.00054794,120]
[330006716,1718925039865,-500.0,0.00054794,120]
[330006718,1718925039875,-500.0,0.00054794,120]
[330006719,1718925039886,-551.92524044,0.00054794,120]
[330006721,1718925039895,-509.52395669,0.00054794,120]
[330006722,1718925039905,-500.0,0.00054794,120]
[330006723,1718925039915,-500.0,0.00054794,120]
[330006724,1718925039925,-500.0,0.00054794,120]
[330006725,1718925039935,-292.60855716,0.00054794,120]
[330006726,1718925039944,-925.15,0.00054794,120]
[330006727,1718925039955,-500.0,0.00054794,120]
[330006728,1718925039968,-500.0,0.00054794,2]
[330006729,1718925039978,-500.0,0.00054794,120]
[330006730,1718925039988,-500.0,0.00054794,120]
[330006731,1718925039998,-409.954074,0.00054794,120]
[330006732,1718925040012,-500.0,0.00054794,120]
[330006733,1718925040022,-500.0,0.00054794,120]
[330006734,1718925040033,-591.06,0.00054794,120]
[330006735,1718925040045,-500.0,0.00054794,120]
[330006736,1718925040056,-500.0,0.00054794,120]
[330006737,1718925040068,-1648.4,0.00054794,120]
[330006738,1718925040078,-500.0,0.00054794,120]
[330006739,1718925040087,-784.45,0.00054794,120]
[330006741,1718925040097,-500.0,0.00054794,120]
[330006742,1718925040107,-2418.71,0.00054794,60]
[330006743,1718925040117,-594.65071846,0.00054794,120]
[330006744,1718925040127,-500.0,0.00054794,120]
[330006745,1718925040137,-500.0,0.00054794,120]
[330006746,1718925040147,-500.0,0.00054794,120]
[330006747,1718925040157,-500.0,0.00054794,120]
[330006748,1718925040167,-944.55,0.00054794,120]
[330006749,1718925040176,-548.27,0.00054794,120]
[330006750,1718925040185,-500.0,0.00054794,120]
[330006751,1718925040195,-178.37014474,0.00054794,120]
[330006752,1718925040204,-1405.19,0.00054794,120]
[330006753,1718925040215,-500.0,0.00054794,120]
[330006754,1718925040224,-500.0,0.00054794,120]
[330006755,1718925040234,-1000.0,0.00054794,120]
[330006756,1718925040244,-1176.23,0.00054794,120]
[330006757,1718925040253,-596.28,0.00054794,120]
[330006758,1718925040263,-500.0,0.00054794,120]
[330006759,1718925040273,-500.0,0.00054794,120]
[330006760,1718925040286,-609.38,0.00054794,120]
[330006761,1718925040296,-500.0,0.00054794,120]
[330006762,1718925040305,-7378.71,0.00054794,120]
[330006763,1718925040315,-1625.85,0.00054794,120]
[330006764,1718925040324,-500.0,0.00054794,120]
[330006765,1718925040334,-500.0,0.00054794,120]
[330006766,1718925040343,-500.0,0.00054794,120]
[330006767,1718925040352,-693.92,0.00054794,120]
[330006768,1718925040362,-500.0,0.00054794,120]
[330006769,1718925040372,-3300.88,0.00054794,120]
[330006770,1718925040381,-500.0,0.00054794,120]
[330006771,1718925040391,-534.44,0.00054794,120]
[330006773,1718925040401,-354.84866601,0.00054794,120]
[330006775,1718925040411,-515.10463892,0.00054794,120]
[330006777,1718925040421,-500.0,0.00054794,120]
[330006779,1718925040432,-613.22,0.00054794,120]
[330006781,1718925040442,-976.8,0.00054794,120]
[330006783,1718925040452,-500.0,0.00054794,120]
[330006785,1718925040462,-637.73,0.00054794,120]
[330006787,1718925040473,-500.0,0.00054794,120]
[330006789,1718925040483,-500.0,0.00054794,120]
[330006791,1718925040492,-500.0,0.00054794,120]
[330006792,1718925040502,-500.0,0.00054794,120]
[330006793,1718925040512,-500.0,0.00054794,60]
[330006794,1718925040523,-500.0,0.00054794,120]
[330006795,1718925040533,-1658.11,0.00054794,120]
[330006796,1718925040543,-1693.71,0.00054794,120]
[330006797,1718925040553,-1268.94,0.00054794,120]
[330006798,1718925040562,-1391.69,0.00054794,120]
[330006799,1718925040572,-822.8,0.00054794,120]
[330006800,1718925040582,-1251.25,0.00054794,120]
[330006801,1718925040591,-500.0,0.00054794,120]
[330006802,1718925040601,-1740.59,0.00054794,120]
[330006803,1718925040611,-55093.77,0.00054794,120]
[330006804,1718925040621,-500.0,0.00054794,120]
[330006805,1718925040630,-500.0,0.00054794,120]
[330006806,1718925040640,-7579.61,0.00054794,120]
[330006807,1718925040649,-618.87,0.00054794,120]
[330006808,1718925040659,-4307.98,0.00054794,21]
[330006809,1718925040669,-1382.73,0.00054794,120]
[330006810,1718925040678,-1171.11,0.00054794,120]
[330006811,1718925040688,-500.0,0.00054794,120]
[330006812,1718925040697,-500.0,0.00054794,120]
[330006813,1718925040706,-500.0,0.00054794,120]
[330006814,1718925040716,-500.0,0.00054794,30]
[330006815,1718925040854,-2470.91,0.00054794,120]
[330006816,1718925040867,-500.0,0.00054794,90]
[330006817,1718925040877,-534.77,0.00054794,120]
[330006818,1718925040887,-1060.04,0.00054794,120]
[330006819,1718925040897,-8394.49,0.00054794,120]
[330006820,1718925040906,-1957.13,0.00054794,120]
[330006821,1718925040916,-1671.22,0.00054794,120]
[330006822,1718925040925,-500.0,0.00054794,120]
[330006823,1718925040934,-500.0,0.00054794,120]
[330006824,1718925040943,-500.0,0.00054794,120]
[330006825,1718925040956,-430.0848862,0.00054794,120]
[330006826,1718925040965,-1414.74,0.00054794,120]
[330006827,1718925040974,-1972.91,0.00054794,120]
[330006828,1718925040983,-500.0,0.00054794,120]
[330006829,1718925040992,-500.0,0.00054794,120]
[330006830,1718925041002,-650.42,0.00054794,120]
[330006831,1718925041011,-500.0,0.00054794,120]
[330006832,1718925041021,-731.11,0.00054794,120]
[330006833,1718925041030,-783.3,0.00054794,120]
[330006834,1718925041043,-500.0,0.00054794,120]
[330006835,1718925041053,-500.0,0.00054794,120]
[330006836,1718925041062,-1217.93,0.00054794,120]
[330006837,1718925041073,-500.0,0.00054794,120]
[330006838,1718925041083,-9761.94,0.00054794,120]
[330006839,1718925041094,-500.0,0.00054794,120]
[330006840,1718925041104,-1161.81,0.00054794,120]
[330006841,1718925041113,-500.0,0.00054794,120]
[330006842,1718925041123,-2471.81,0.00054794,120]
[330006843,1718925041133,-718.3,0.00054794,120]
[330006844,1718925041143,-24040.0,0.00054794,120]
[330006845,1718925041153,-500.0,0.00054794,120]
[330006846,1718925041163,-500.0,0.00054794,120]
[330006847,1718925041173,-1292.07,0.00054794,120]
[330006848,1718925041182,-500.0,0.00054794,120]
[330006849,1718925041192,-500.0,0.00054794,120]
[330006850,1718925041202,-751.12,0.00054794,120]
[330006851,1718925041213,-8889.35,0.00054794,120]
[330006852,1718925041224,-2148.21,0.00054794,120]
[330006853,1718925041233,-500.0,0.00054794,120]
[330006854,1718925041243,-500.0,0.00054794,120]
[330006855,1718925041253,-623.53,0.00054794,120]
[330006856,1718925041264,-500.0,0.00054794,120]
[330006857,1718925041275,-500.0,0.00054794,120]
[330006858,1718925041285,-449.8611774,0.00054794,120]
[330006859,1718925041302,-268.5388226,0.00054794,120]
[330006860,1718925041313,-500.0,0.00054794,120]
[330006861,1718925041323,-525.62,0.00054794,120]
[330006862,1718925041332,-500.0,0.00054794,120]
[330006863,1718925041342,-517.20493663,0.00054794,120]
[330006864,1718925041352,-848.68,0.00054794,120]
[330006865,1718925041361,-3405.15012864,0.00054794,120]
[330006866,1718925041373,-1108.78974073,0.00054794,120]
[330006867,1718925041385,-695.15013063,0.00054794,120]
[330006868,1718925041395,-500.0,0.00054794,120]
[330006869,1718925041403,-500.0,0.00054794,120]
[330006870,1718925041413,-500.0,0.00054794,120]
[330006871,1718925041423,-682.58,0.00054794,120]
[330006872,1718925041433,-500.0,0.00054794,120]
[330006873,1718925041443,-500.0,0.00054794,120]
[330006874,1718925041452,-6.29352026,0.00054794,120]
[330006875,1718925041510,-493.70647974,0.00054794,120]
[330006876,1718925041519,-500.0,0.00054794,120]
[330006877,1718925041529,-500.0,0.00054794,120]
[330006878,1718925041539,-500.0,0.00054794,120]
[330006879,1718925041549,-500.0,0.00054794,120]
[330006880,1718925041558,-500.0,0.00054794,120]
[330006881,1718925041567,-500.0,0.00054794,120]
[330006882,1718925041576,-500.0,0.00054794,120]
[330006883,1718925041586,-500.0,0.00054794,120]
[330006884,1718925041595,-531.9178933,0.00054794,120]
[330006885,1718925041605,-500.0,0.00054794,120]
[330006886,1718925041614,-500.0,0.00054794,120]
[330006887,1718925041623,-500.0,0.00054794,120]
[330006888,1718925041633,-500.0,0.00054794,120]
[330006889,1718925041642,-450.70413281,0.00054794,2]
[330006890,1718925041651,-500.0,0.00054794,120]
[330006891,1718925041660,-5939.78,0.00054794,120]
[330006892,1718925041670,-500.0,0.00054794,120]
[330006893,1718925041680,-489.59252307,0.00054794,120]
[330006894,1718925041691,-1993.41,0.00054794,120]
[330006895,1718925041700,-500.0,0.00054794,120]
[330006896,1718925041709,-678.9519461,0.00054794,120]
[330007028,1718925046257,-609.4580539,0.00054794,120]
[330007029,1718925046267,-500.0,0.00054794,120]
[330007030,1718925046278,-2390.68,0.00054794,120]
[330007031,1718925046289,-500.0,0.00054794,120]
[330007032,1718925046298,-500.0,0.00054794,120]
[330007033,1718925046307,-500.0,0.00054794,120]
[330007034,1718925046320,-3095.88,0.00054794,120]
[330007035,1718925046329,-500.0,0.00054794,120]
[330007036,1718925046338,-19702.57,0.00054794,120]
[330007037,1718925046347,-500.0,0.00054794,120]
[330007038,1718925046357,-221.0,0.000549,30]
[330007039,1718925046367,-500.0,0.00054999,120]
[330007040,1718925046376,-252.0,0.00055,34]
[330007041,1718925046386,-41733.46004713,0.00055,120]
[330007042,1718925046395,-628.367285,0.00055,120]
[330007043,1718925046404,-160.0,0.00055,50]
[330007044,1718925046414,-180.0,0.00055,30]
[330007045,1718925046424,-1000.0,0.00055,120]
[330007046,1718925046433,-151.0,0.00055,50]
[330007047,1718925046442,-500.0,0.00055067,120]
[330007048,1718925046451,-500.0,0.00055067,120]
[330007049,1718925046462,-500.0,0.00055067,120]
[330007050,1718925046471,-500.0,0.00055067,120]
[330007051,1718925046481,-500.0,0.00055067,120]
[330007052,1718925046491,-500.0,0.00055067,120]
[330007053,1718925046500,-158.27977892,0.00055067,120]
[330007054,1718925046510,-500.0,0.00055068,120]
[330007055,1718925046519,-500.0,0.00055068,120]
[330007056,1718925046528,-500.0,0.00055068,120]
[330007057,1718925046538,-563.72800977,0.00055068,120]
[330007058,1718925046547,-151.0,0.00055068,120]
[330007059,1718925046639,-500.0,0.00055068,120]
[330007060,1718925046650,-500.0,0.00055068,120]
[330007061,1718925046659,-364.0245495,0.00055068,120]
[330007062,1718925046669,-500.0,0.00055068,120]
[330007063,1718925046679,-500.0,0.00055068,120]
[330007064,1718925046688,-500.0,0.00055068,120]
[330007065,1718925046697,-500.0,0.00055068,120]
[330007066,1718925046707,-151.0,0.00055068,120]
[330007067,1718925046716,-500.0,0.00055068,120]
[330007068,1718925046726,-500.0,0.00055068,120]
[330007069,1718925046735,-500.0,0.00055068,120]
[330007070,1718925046744,-597.94,0.00055068,120]
[330007071,1718925046753,-878.0,0.00055068,120]
[330007072,1718925046764,-500.0,0.00055068,7]
[330007073,1718925046773,-500.0,0.00055068,120]
[330007074,1718925046782,-500.0,0.00055068,120]
[330007075,1718925046793,-263.62123496,0.00055068,4]
[330007076,1718925046802,-500.0,0.00055068,120]
[330007077,1718925046811,-151.0,0.00055068,120]
[330007078,1718925046820,-1551.54,0.00055068,120]
[330007079,1718925046831,-500.0,0.00055068,120]
[330007080,1718925046840,-540.2,0.00055068,120]
[330007081,1718925046849,-500.0,0.00055068,120]
[330007082,1718925046859,-151.0,0.00055068,120]
[330007083,1718925046868,-500.0,0.00055068,120]
[330007084,1718925046877,-857.63,0.00055068,120]
[330007085,1718925046886,-500.0,0.00055068,120]
[330007086,1718925046895,-575.44,0.00055068,120]
[330007087,1718925046904,-798.55,0.00055068,120]
[330007088,1718925046913,-500.0,0.00055068,120]
[330007089,1718925046922,-500.0,0.00055068,120]
[330007090,1718925046932,-2252.58,0.00055068,120]
[330007091,1718925046943,-2645.32,0.00055068,120]
[330007092,1718925046956,-500.0,0.00055068,120]
[330007093,1718925046969,-500.0,0.00055068,120]
[330007094,1718925046980,-491.36308645,0.00055068,120]
[330007095,1718925046990,-500.0,0.00055068,120]
[330007096,1718925047000,-500.0,0.00055068,120]
[330007097,1718925047010,-500.0,0.00055068,120]
[330007098,1718925047019,-500.0,0.00055068,120]
[330007099,1718925047027,-261.42334499,0.00055068,120]
[330007100,1718925047039,-500.0,0.00055068,2]
[330007101,1718925047048,-250.0,0.00055068,120]
[330007102,1718925047058,-1465.6,0.00055068,120]
[330007103,1718925047067,-882.86,0.00055068,120]
[330007104,1718925047075,-610.32,0.00055068,120]
[330007105,1718925047085,-500.0,0.00055068,120]
[330007106,1718925047095,-586.58,0.00055068,7]
[330007107,1718925047104,-1346.31,0.00055068,120]
[330007108,1718925047114,-500.0,0.00055068,120]
[330007109,1718925047123,-500.0,0.00055068,120]
[330007110,1718925047132,-699.3,0.00055068,120]
[330007111,1718925047142,-2062.13,0.00055068,120]
[330007112,1718925047154,-500.0,0.00055068,120]
[330007113,1718925047163,-151.0,0.00055068,120]
[330007114,1718925047174,-500.0,0.00055068,120]
[330007115,1718925047184,-500.0,0.00055068,120]
[330007116,1718925047196,-151.0,0.00055068,120]
[330007117,1718925047206,-151.0,0.00055068,120]
[330007118,1718925047217,-500.0,0.00055068,120]
[330007119,1718925047227,-197.93886393,0.00055068,120]
[330007120,1718925047236,-500.0,0.00055068,120]
[330007121,1718925047246,-500.0,0.00055068,120]
[330007122,1718925047255,-500.0,0.00055068,120]
[330007123,1718925047265,-1807.04,0.00055068,120]
[330007124,1718925047274,-151.0,0.00055068,120]
[330007125,1718925047286,-151.0,0.00055068,120]
[330007126,1718925047295,-500.0,0.00055068,120]
[330007127,1718925047304,-500.0,0.00055068,120]
[330007128,1718925047315,-500.0,0.00055068,120]
[330007129,1718925047325,-500.0,0.00055068,120]
[330007130,1718925047334,-500.0,0.00055068,120]
[330007131,1718925047346,-151.0,0.00055068,120]
[330007132,1718925047356,-925.15,0.00055068,120]
[330007133,1718925047366,-500.0,0.00055068,120]
[330007134,1718925047377,-500.0,0.00055068,2]
[330007135,1718925047388,-500.0,0.00055068,120]
[330007136,1718925047397,-500.0,0.00055068,120]
[330007137,1718925047406,-591.06,0.00055068,120]
[330007138,1718925047418,-500.0,0.00055068,120]
[330007139,1718925047429,-500.0,0.00055068,120]
[330007140,1718925047439,-1648.4,0.00055068,120]
[330007141,1718925047448,-633.81214196,0.00055068,120]
[330007142,1718925047458,-784.45,0.00055068,120]
[330007143,1718925047467,-500.0,0.00055068,33]
[330007144,1718925047477,-2418.71,0.00055068,60]
[330007145,1718925047488,-500.0,0.00055068,120]
[330007146,1718925047498,-500.0,0.00055068,120]
[330007147,1718925047508,-582.570742,0.00055068,120]
[330007148,1718925047518,-582.570742,0.00055068,120]
[330007149,1718925047529,-500.0,0.00055068,120]
[330007150,1718925047540,-582.570742,0.00055068,120]
[330007151,1718925047549,-582.570742,0.00055068,120]
[330007152,1718925047560,-500.0,0.00055068,120]
[330007153,1718925047569,-944.55,0.00055068,120]
[330007154,1718925047579,-151.0,0.00055068,120]
[330007155,1718925047591,-151.0,0.00055068,120]
[330007156,1718925047601,-548.27,0.00055068,120]
[330007157,1718925047611,-321.77009182,0.00055068,120]
[330007158,1718925047620,-1405.19,0.00055068,120]
[330007159,1718925047629,-500.0,0.00055068,120]
[330007160,1718925047639,-500.0,0.00055068,120]
[330007161,1718925047648,-1176.23,0.00055068,120]
[330007162,1718925047657,-596.28,0.00055068,120]
[330007163,1718925047666,-500.0,0.00055068,120]
[330007164,1718925047675,-500.0,0.00055068,120]
[330007165,1718925047684,-609.38,0.00055068,120]
[330007166,1718925047693,-151.0,0.00055068,120]
[330007167,1718925047703,-151.0,0.00055068,120]
[330007168,1718925047712,-151.0,0.00055068,120]
[330007169,1718925047721,-151.0,0.00055068,120]
[330007170,1718925047730,-7378.71,0.00055068,120]
[330007171,1718925047739,-1625.85,0.00055068,120]
[330007172,1718925047752,-500.0,0.00055068,120]
[330007173,1718925047761,-500.0,0.00055068,120]
[330007174,1718925047770,-693.92,0.00055068,120]
[330007175,1718925047779,-500.0,0.00055068,120]
[330007176,1718925047790,-3300.88,0.00055068,120]
[330007177,1718925047799,-500.0,0.00055068,120]
[330007178,1718925047809,-534.44,0.00055068,120]
[330007179,1718925047818,-500.0,0.00055068,120]
[330007180,1718925047829,-613.22,0.00055068,120]
[330007181,1718925047838,-976.8,0.00055068,120]
[330007182,1718925047847,-500.0,0.00055068,120]
[330007183,1718925047856,-637.73,0.00055068,120]
[330007184,1718925047866,-151.0,0.00055068,120]
[330007185,1718925047875,-151.0,0.00055068,120]
[330007186,1718925047884,-500.0,0.00055068,120]
[330007187,1718925047893,-500.0,0.00055068,120]
[330007188,1718925047903,-500.0,0.00055068,120]
[330007189,1718925047912,-500.0,0.00055068,60]
[330007190,1718925047922,-1658.11,0.00055068,120]
[330007191,1718925047931,-1693.71,0.00055068,120]
[330007192,1718925047940,-1268.94,0.00055068,120]
[330007193,1718925047949,-1391.69,0.00055068,120]
[330007194,1718925047963,-822.8,0.00055068,120]
[330007195,1718925047972,-1251.25,0.00055068,120]
[330007196,1718925047983,-500.0,0.00055068,120]
[330007197,1718925047992,-1740.59,0.00055068,120]
[330007198,1718925048002,-55093.77,0.00055068,120]
[330007199,1718925048011,-500.0,0.00055068,120]
[330007200,1718925048020,-500.0,0.00055068,120]
[330007201,1718925048030,-151.0,0.00055068,120]
[330007202,1718925048042,-151.0,0.00055068,120]
[330007203,1718925048052,-7579.61,0.00055068,120]
[330007204,1718925048062,-618.87,0.00055068,120]
[330007205,1718925048071,-188.247273,0.00055068,120]
[330007206,1718925048081,-188.247273,0.00055068,120]
[330007207,1718925048090,-4307.98,0.00055068,21]
[330007208,1718925048099,-188.247273,0.00055068,120]
[330007209,1718925048109,-188.247273,0.00055068,120]
[330007210,1718925048118,-1382.73,0.00055068,120]
[330007211,1718925048127,-1171.11,0.00055068,120]
[330007212,1718925048137,-500.0,0.00055068,120]
[330007213,1718925048146,-500.0,0.00055068,120]
[330007214,1718925048155,-151.0,0.00055068,120]
[330007215,1718925048166,-500.0,0.00055068,30]
[330007216,1718925048175,-151.0,0.00055068,120]
[330007217,1718925048185,-2470.91,0.00055068,120]
[330007218,1718925048194,-500.0,0.00055068,90]
[330007219,1718925048204,-534.77,0.00055068,120]
[330007220,1718925048281,-1060.04,0.00055068,120]
[330007221,1718925048292,-8394.49,0.00055068,120]
[330007222,1718925048302,-1957.13,0.00055068,120]
[330007223,1718925048312,-1671.22,0.00055068,120]
[330007224,1718925048322,-589.38687548,0.00055068,120]
[330007225,1718925048331,-1175.407812,0.00055068,120]
[330007226,1718925048341,-1175.407812,0.00055068,120]
[330007227,1718925048351,-500.0,0.00055068,120]
[330007228,1718925048361,-1414.74,0.00055068,120]
[330007229,1718925048370,-1972.91,0.00055068,120]
[330007230,1718925048380,-1175.407812,0.00055068,120]
[330007231,1718925048390,-1175.407812,0.00055068,120]
[330007232,1718925048400,-500.0,0.00055068,120]
[330007233,1718925048409,-151.0,0.00055068,120]
[330007234,1718925048419,-249.59546559,0.00055068,120]
[330007235,1718925048428,-151.0,0.00055068,120]
[330007236,1718925048437,-151.0,0.00055068,120]
[330007237,1718925048447,-151.0,0.00055068,120]
[330007238,1718925048457,-650.42,0.00055068,120]
[330007239,1718925048467,-731.11,0.00055068,120]
[330007240,1718925048476,-783.3,0.00055068,120]
[330007241,1718925048485,-500.0,0.00055068,120]
[330007242,1718925048494,-500.0,0.00055068,120]
[330007243,1718925048504,-1217.93,0.00055068,120]
[330007244,1718925048513,-500.0,0.00055068,120]
[330007245,1718925048522,-9761.94,0.00055068,120]
[330007246,1718925048531,-500.0,0.00055068,120]
[330007247,1718925048541,-1161.81,0.00055068,120]
[330007248,1718925048550,-151.0,0.00055068,120]
[330007249,1718925048559,-500.0,0.00055068,120]
[330007250,1718925048569,-2471.81,0.00055068,120]
[330007251,1718925048578,-718.3,0.00055068,120]
[330007252,1718925048587,-24040.0,0.00055068,120]
[330007253,1718925048597,-500.0,0.00055068,120]
[330007254,1718925048606,-500.0,0.00055068,120]
[330007255,1718925048615,-1292.07,0.00055068,120]
[330007256,1718925048624,-500.0,0.00055068,120]
[330007257,1718925048633,-265.942462,0.00055068,120]
[330007258,1718925048643,-265.942462,0.00055068,120]
[330007259,1718925048652,-500.0,0.00055068,120]
[330007260,1718925048661,-265.942462,0.00055068,120]
[330007261,1718925048670,-751.12,0.00055068,120]
[330007262,1718925048680,-8889.35,0.00055068,120]
[330007263,1718925048688,-265.942462,0.00055068,120]
[330007264,1718925048698,-265.942462,0.00055068,120]
[330007265,1718925048707,-265.942462,0.00055068,120]
[330007266,1718925048716,-2148.21,0.00055068,120]
[330007267,1718925048726,-500.0,0.00055068,120]
[330007268,1718925048735,-151.0,0.00055068,120]
[330007269,1718925048745,-151.0,0.00055068,120]
[330007270,1718925048754,-151.0,0.00055068,120]
[330007271,1718925048765,-623.53,0.00055068,120]
[330007272,1718925048775,-500.0,0.00055068,120]
[330007273,1718925048785,-500.0,0.00055068,120]
[330007274,1718925048794,-718.4,0.00055068,120]
[330007275,1718925048803,-500.0,0.00055068,120]
[330007276,1718925048813,-525.62,0.00055068,120]
[330007277,1718925048822,-151.0,0.00055068,120]
[330007278,1718925048831,-151.0,0.00055068,120]
[330007279,1718925048841,-848.68,0.00055068,120]
[330007280,1718925048850,-5209.09,0.00055068,120]
[330007281,1718925048859,-500.0,0.00055068,120]
[330007282,1718925048868,-500.0,0.00055068,120]
[330007283,1718925048878,-500.0,0.00055068,120]
[330007284,1718925048887,-682.58,0.00055068,120]
[330007285,1718925048896,-500.0,0.00055068,120]
[330007286,1718925048906,-308.6545,0.00055068,120]
[330007287,1718925048915,-308.6545,0.00055068,120]
[330007288,1718925048924,-308.6545,0.00055068,120]
[330007289,1718925048934,-308.6545,0.00055068,120]
[330007290,1718925048943,-500.0,0.00055068,120]
[330007291,1718925048953,-500.0,0.00055068,120]
[330007292,1718925048966,-500.0,0.00055068,120]
[330007293,1718925048976,-500.0,0.00055068,120]
[330007294,1718925048986,-500.0,0.00055068,120]
[330007295,1718925048995,-5939.78,0.00055068,120]
[330007296,1718925049007,-500.0,0.00055068,120]
[330007297,1718925049017,-1993.41,0.00055068,120]
[330007298,1718925049026,-500.0,0.00055068,120]
[330007299,1718925049037,-1288.41,0.00055068,120]
[330007300,1718925049047,-500.0,0.00055068,120]
[330007301,1718925049056,-2390.68,0.00055068,120]
[330007302,1718925049066,-500.0,0.00055068,120]
[330007303,1718925049075,-500.0,0.00055068,120]
[330007304,1718925049085,-3095.88,0.00055068,120]
[330007305,1718925049094,-19702.57,0.00055068,120]
[330007306,1718925049104,-589.308345,0.00055068,120]
[330007307,1718925049113,-589.308345,0.00055068,120]
[330007308,1718925049122,-500.0,0.00055068,120]
[330007309,1718925049131,-589.308345,0.00055068,120]
[330007310,1718925049141,-589.308345,0.00055068,120]
[330007311,1718925049152,-150.00628468,0.0005519,120]
[330007312,1718925049161,-150.00628468,0.0005519,120]
[330007313,1718925049170,-150.5,0.00055242,120]
[330007314,1718925049180,-287.67,0.0005526,62]
[330007315,1718925049189,-150.5,0.0005527,62]
[330007316,1718925049199,-5060.75402454,0.00055284,120]
[330007317,1718925049208,-206975.97685851,0.0005529,120]
[330007318,1718925077322,224.834341,0.00042467,2]
[330007319,1718925105782,4938.38228779,0.00048,120]
[330007320,1718925105804,1079.70877421,0.00048,120]
[330007325,1718926037170,-185.356698,0.00021096,2]
[330007326,1718926037191,-152.1322124,0.00042106,2]
[330007327,1718926037212,-224.20400209,0.00044328,2]
[330007328,1718926038124,-25.79599791,0.00044328,2]
[330007329,1718926038150,-163.660309,0.00045592,2]
[330007330,1718926038185,-139.27491888,0.00048,120]
[330007331,1718926149487,-11.72508112,0.00048,120]